[Event "Late-Titled-Tuesday-Blitz-October-10-2023"]
[Site "Chess.com"]
[Date "2023.10.10"]
[Round "10"]
[White "Cheer_Down"]
[Black "Javylavilla"]
[Result "1-0"]
[WhiteElo "2454"]
[BlackElo "2336"]
[TimeControl "180+1"]
[EndTime "15:51:19 PDT"]
[Termination "Cheer_Down won on time"]

1. e4 {[%clk 0:02:59.4]} 1... c5 {[%clk 0:02:58.3]} 2. Nf3 {[%clk 0:02:58.9]}
2... Nc6 {[%clk 0:02:58.1]} 3. Bb5 {[%clk 0:02:56.7]} 3... Nd4 {[%clk
0:02:56.4]} 4. Nxd4 {[%clk 0:02:55.1]} 4... cxd4 {[%clk 0:02:57.1]} 5. c3 {[%clk
0:02:55.1]} 5... dxc3 {[%clk 0:02:51.6]} 6. Nxc3 {[%clk 0:02:49.9]} 6... g6
{[%clk 0:02:51]} 7. d4 {[%clk 0:02:45.8]} 7... Bg7 {[%clk 0:02:50.8]} 8. O-O
{[%clk 0:02:42.1]} 8... a6 {[%clk 0:02:49.3]} 9. Bc4 {[%clk 0:02:30.9]} 9... b5
{[%clk 0:02:48.3]} 10. Bb3 {[%clk 0:02:30.7]} 10... e6 {[%clk 0:02:40.6]} 11.
Bf4 {[%clk 0:02:07.4]} 11... d6 {[%clk 0:02:34.6]} 12. Re1 {[%clk 0:01:45.2]}
12... Ne7 {[%clk 0:02:33.7]} 13. Qd2 {[%clk 0:01:45]} 13... Bb7 {[%clk 0:02:31]}
14. Bh6 {[%clk 0:01:39.1]} 14... O-O {[%clk 0:02:30.1]} 15. Bxg7 {[%clk
0:01:37.8]} 15... Kxg7 {[%clk 0:02:31]} 16. a3 {[%clk 0:01:36.9]} 16... Rc8
{[%clk 0:02:29.7]} 17. h4 {[%clk 0:01:34.1]} 17... d5 {[%clk 0:02:29]} 18. e5
{[%clk 0:01:31.8]} 18... Nf5 {[%clk 0:02:28.7]} 19. g3 {[%clk 0:01:30.7]} 19...
Qb6 {[%clk 0:02:23.5]} 20. Rad1 {[%clk 0:01:29.7]} 20... b4 {[%clk 0:02:23.8]}
21. Na4 {[%clk 0:01:26.7]} 21... Qd8 {[%clk 0:02:01.6]} 22. axb4 {[%clk
0:01:22.2]} 22... Bc6 {[%clk 0:02:01]} 23. Nc5 {[%clk 0:01:22.1]} 23... Bb5
{[%clk 0:02:01.3]} 24. Bc2 {[%clk 0:01:19]} 24... Ne7 {[%clk 0:01:38.6]} 25. h5
{[%clk 0:01:16.1]} 25... Nc6 {[%clk 0:01:35.1]} 26. Qf4 {[%clk 0:01:02]} 26...
Nxb4 {[%clk 0:01:28.2]} 27. Bb1 {[%clk 0:01:00.7]} 27... Nc6 {[%clk 0:01:21.8]}
28. Kg2 {[%clk 0:00:58.2]} 28... Qe7 {[%clk 0:01:15.8]} 29. b4 {[%clk 0:00:51]}
29... f5 {[%clk 0:01:09.1]} 30. hxg6 {[%clk 0:00:49.3]} 30... hxg6 {[%clk
0:01:08.2]} 31. Rh1 {[%clk 0:00:41.3]} 31... Rh8 {[%clk 0:01:08.1]} 32. g4
{[%clk 0:00:34.6]} 32... Nxb4 {[%clk 0:00:53.8]} 33. gxf5 {[%clk 0:00:32.6]}
33... exf5 {[%clk 0:00:53.3]} 34. e6 {[%clk 0:00:25.9]} 34... Qf6 {[%clk
0:00:44.9]} 35. Rde1 {[%clk 0:00:24.4]} 35... Rxh1 {[%clk 0:00:42.9]} 36. Rxh1
{[%clk 0:00:24]} 36... Rh8 {[%clk 0:00:21.4]} 37. Rxh8 {[%clk 0:00:22.3]} 37...
Kxh8 {[%clk 0:00:21.1]} 38. Qb8+ {[%clk 0:00:19.6]} 38... Kg7 {[%clk 0:00:19.4]}
39. Qc7+ {[%clk 0:00:19.5]} 39... Kh6 {[%clk 0:00:18.8]} 40. e7 {[%clk
0:00:19.2]} 40... Qg5+ {[%clk 0:00:15.5]} 41. Kh2 {[%clk 0:00:17.9]} 41... Qh4+
{[%clk 0:00:14.5]} 42. Kg1 {[%clk 0:00:18.1]} 42... Qg4+ {[%clk 0:00:13.4]} 43.
Kh2 {[%clk 0:00:18.4]} 43... Qh4+ {[%clk 0:00:09.7]} 44. Kg1 {[%clk 0:00:18.5]}
44... Qxd4 {[%clk 0:00:08.3]} 45. Qd8 {[%clk 0:00:15.9]} 45... Qd1+ {[%clk
0:00:07.3]} 46. Kh2 {[%clk 0:00:16.1]} 46... Qxb1 {[%clk 0:00:06.6]} 47. Ne6
{[%clk 0:00:15.4]} 47... Qb2 {[%clk 0:00:03.5]} 48. Qf8+ {[%clk 0:00:15.2]}
48... Kh5 {[%clk 0:00:03]} 49. Nf4+ {[%clk 0:00:12.3]} 49... Kg4 {[%clk
0:00:02.5]} 50. Ng2 {[%clk 0:00:11.1]} 50... Qxf2 {[%clk 0:00:01.8]} 51. Qf6
{[%clk 0:00:09.3]} 1-0

[Event "Late-Titled-Tuesday-Blitz-October-10-2023"]
[Site "Chess.com"]
[Date "2023.10.10"]
[Round "10"]
[White "iturrizaga"]
[Black "Msb2"]
[Result "1-0"]
[WhiteElo "3034"]
[BlackElo "3049"]
[TimeControl "180+1"]
[EndTime "15:51:29 PDT"]
[Termination "iturrizaga won by checkmate"]

1. c4 {[%clk 0:03:00.9]} 1... e6 {[%clk 0:03:00.5]} 2. Nf3 {[%clk 0:03:00.8]}
2... d5 {[%clk 0:03:01.4]} 3. g3 {[%clk 0:02:57.1]} 3... Nf6 {[%clk 0:03:01.9]}
4. Bg2 {[%clk 0:02:57.4]} 4... Nc6 {[%clk 0:03:02.1]} 5. cxd5 {[%clk 0:02:53.3]}
5... exd5 {[%clk 0:03:03]} 6. O-O {[%clk 0:02:53.3]} 6... Bd6 {[%clk 0:03:03.8]}
7. d4 {[%clk 0:02:49.7]} 7... O-O {[%clk 0:03:04.1]} 8. Nc3 {[%clk 0:02:50.3]}
8... h6 {[%clk 0:03:04.4]} 9. Bf4 {[%clk 0:02:48]} 9... Bxf4 {[%clk 0:03:04.3]}
10. gxf4 {[%clk 0:02:48.9]} 10... Ne7 {[%clk 0:03:05.2]} 11. e3 {[%clk
0:02:47.7]} 11... Nf5 {[%clk 0:03:05.4]} 12. Ne5 {[%clk 0:02:41.6]} 12... Nh4
{[%clk 0:03:05.1]} 13. Kh1 {[%clk 0:02:21.6]} 13... Nxg2 {[%clk 0:03:04.8]} 14.
Kxg2 {[%clk 0:02:20.9]} 14... Be6 {[%clk 0:03:02.4]} 15. Rg1 {[%clk 0:02:18.2]}
15... Nd7 {[%clk 0:03:01.6]} 16. Kh1 {[%clk 0:02:15.8]} 16... Nxe5 {[%clk
0:03:00.4]} 17. fxe5 {[%clk 0:02:05.1]} 17... Qh4 {[%clk 0:02:50.3]} 18. Rg3
{[%clk 0:02:03.5]} 18... f6 {[%clk 0:02:48.4]} 19. f4 {[%clk 0:02:01.4]} 19...
fxe5 {[%clk 0:02:41.8]} 20. dxe5 {[%clk 0:02:00.5]} 20... c5 {[%clk 0:02:32.1]}
21. Rg6 {[%clk 0:01:31.8]} 21... Bf7 {[%clk 0:02:24.8]} 22. Rg4 {[%clk
0:01:29.7]} 22... Qh3 {[%clk 0:02:10.6]} 23. Rg3 {[%clk 0:01:28.6]} 23... Qf5
{[%clk 0:02:07.9]} 24. Qf3 {[%clk 0:01:22.3]} 24... d4 {[%clk 0:01:28.6]} 25.
Nb5 {[%clk 0:01:19.4]} 25... dxe3 {[%clk 0:01:20.2]} 26. Nd6 {[%clk 0:01:19.4]}
26... Qe6 {[%clk 0:01:18.8]} 27. Rag1 {[%clk 0:01:13.2]} 27... g5 {[%clk
0:01:07]} 28. h4 {[%clk 0:01:12]} 28... Bg6 {[%clk 0:00:46.8]} 29. hxg5 {[%clk
0:01:02.2]} 29... h5 {[%clk 0:00:47.3]} 30. Qxe3 {[%clk 0:00:59.6]} 30... Rad8
{[%clk 0:00:47.2]} 31. Kh2 {[%clk 0:00:52.5]} 31... Qxa2 {[%clk 0:00:41.7]} 32.
R3g2 {[%clk 0:00:44.6]} 32... Qe6 {[%clk 0:00:40.3]} 33. Re1 {[%clk 0:00:40.6]}
33... b6 {[%clk 0:00:35.5]} 34. Rf2 {[%clk 0:00:40.5]} 34... Rd7 {[%clk
0:00:27.7]} 35. Rfe2 {[%clk 0:00:30.8]} 35... Qg4 {[%clk 0:00:24.5]} 36. Rf2
{[%clk 0:00:25.4]} 36... Qe6 {[%clk 0:00:24.6]} 37. Rd1 {[%clk 0:00:21.1]} 37...
Qg4 {[%clk 0:00:22.7]} 38. Rdd2 {[%clk 0:00:17.7]} 38... Qh4+ {[%clk 0:00:16.4]}
39. Kg2 {[%clk 0:00:13.4]} 39... Qg4+ {[%clk 0:00:17]} 40. Qg3 {[%clk
0:00:13.6]} 40... Qe6 {[%clk 0:00:17.6]} 41. Qh3 {[%clk 0:00:13.5]} 41... Re7
{[%clk 0:00:04.5]} 42. Qxe6+ {[%clk 0:00:10.4]} 42... Rxe6 {[%clk 0:00:05.4]}
43. Kg3 {[%clk 0:00:11.1]} 43... Re7 {[%clk 0:00:04.4]} 44. Kh4 {[%clk
0:00:05.4]} 44... Kg7 {[%clk 0:00:03.4]} 45. Rde2 {[%clk 0:00:05.8]} 45... Bf5
{[%clk 0:00:02.3]} 46. Nxf5+ {[%clk 0:00:05.5]} 46... Rxf5 {[%clk 0:00:03.2]}
47. Kxh5 {[%clk 0:00:06.1]} 47... Rf8 {[%clk 0:00:02.4]} 48. Kg4 {[%clk
0:00:06.4]} 48... Rh8 {[%clk 0:00:02]} 49. f5 {[%clk 0:00:06.4]} 49... Rd7
{[%clk 0:00:02.9]} 50. f6+ {[%clk 0:00:06.7]} 50... Kg6 {[%clk 0:00:03.6]} 51.
e6 {[%clk 0:00:07]} 51... Rd5 {[%clk 0:00:03.4]} 52. f7 {[%clk 0:00:03.6]} 52...
Rxg5+ {[%clk 0:00:03.6]} 53. Kf4 {[%clk 0:00:03.5]} 53... Rh4+ {[%clk 0:00:02]}
54. Ke3 {[%clk 0:00:03.6]} 54... Re5+ {[%clk 0:00:02.2]} 55. Kd2 {[%clk
0:00:03.9]} 55... Rd4+ {[%clk 0:00:02.8]} 56. Kc2 {[%clk 0:00:04]} 56... Rc4+
{[%clk 0:00:03.1]} 57. Kb1 {[%clk 0:00:03.9]} 57... Rb4 {[%clk 0:00:04]} 58.
Rxe5 {[%clk 0:00:04.1]} 58... Rxb2+ {[%clk 0:00:04.4]} 59. Kxb2 {[%clk
0:00:04.3]} 59... Kg7 {[%clk 0:00:05.3]} 60. f8=Q+ {[%clk 0:00:04.7]} 60... Kh7
{[%clk 0:00:06.2]} 61. Rh2+ {[%clk 0:00:04.8]} 61... Kg6 {[%clk 0:00:07]} 62.
Rh6# {[%clk 0:00:05.7]} 1-0

[Event "Late-Titled-Tuesday-Blitz-October-10-2023"]
[Site "Chess.com"]
[Date "2023.10.10"]
[Round "10"]
[White "Levanzovsky"]
[Black "karinachess1"]
[Result "1/2-1/2"]
[WhiteElo "2456"]
[BlackElo "2581"]
[TimeControl "180+1"]
[EndTime "15:51:29 PDT"]
[Termination "Game drawn - insufficient material"]

1. e4 {[%clk 0:03:00.9]} 1... e5 {[%clk 0:03:00.1]} 2. Nf3 {[%clk 0:02:58.3]}
2... Nc6 {[%clk 0:03:00.3]} 3. Nc3 {[%clk 0:02:57.9]} 3... Nf6 {[%clk
0:03:00.1]} 4. d4 {[%clk 0:02:57.8]} 4... exd4 {[%clk 0:03:01]} 5. Nxd4 {[%clk
0:02:58.5]} 5... Bb4 {[%clk 0:03:01.5]} 6. Nxc6 {[%clk 0:02:59.1]} 6... bxc6
{[%clk 0:03:01.9]} 7. Bd3 {[%clk 0:02:59.5]} 7... O-O {[%clk 0:03:02.3]} 8. O-O
{[%clk 0:02:59.5]} 8... d5 {[%clk 0:03:02.6]} 9. Bd2 {[%clk 0:03:00.2]} 9... Rb8
{[%clk 0:02:58.6]} 10. Re1 {[%clk 0:02:59.2]} 10... Bxc3 {[%clk 0:02:23]} 11.
Bxc3 {[%clk 0:02:57.2]} 11... d4 {[%clk 0:02:19.5]} 12. Bd2 {[%clk 0:02:51.2]}
12... h6 {[%clk 0:02:08.5]} 13. e5 {[%clk 0:02:48.6]} 13... Nd5 {[%clk
0:02:08.8]} 14. Qh5 {[%clk 0:02:46.4]} 14... Qd7 {[%clk 0:01:43.2]} 15. Re4
{[%clk 0:02:42.2]} 15... f5 {[%clk 0:01:24.4]} 16. Rxd4 {[%clk 0:02:35.3]} 16...
Qf7 {[%clk 0:01:18.5]} 17. Qf3 {[%clk 0:02:27.9]} 17... Rxb2 {[%clk 0:01:10.5]}
18. Ra4 {[%clk 0:02:10.4]} 18... Be6 {[%clk 0:00:47.1]} 19. Rxa7 {[%clk
0:01:48.7]} 19... Rfb8 {[%clk 0:00:47.1]} 20. h3 {[%clk 0:01:45.7]} 20... g5
{[%clk 0:00:33.1]} 21. Ra6 {[%clk 0:01:13.5]} 21... Qd7 {[%clk 0:00:25]} 22. Qh5
{[%clk 0:01:04.6]} 22... Kg7 {[%clk 0:00:23.5]} 23. g4 {[%clk 0:00:54.5]} 23...
Bf7 {[%clk 0:00:21.7]} 24. Bxf5 {[%clk 0:00:51]} 24... Qe7 {[%clk 0:00:19.6]}
25. Bxg5 {[%clk 0:00:46.7]} 25... Qxg5 {[%clk 0:00:16.5]} 26. Qxg5+ {[%clk
0:00:46.1]} 26... hxg5 {[%clk 0:00:17.4]} 27. Rxc6 {[%clk 0:00:45.4]} 27... Rb1+
{[%clk 0:00:10.6]} 28. Rxb1 {[%clk 0:00:45.7]} 28... Rxb1+ {[%clk 0:00:11.5]}
29. Kh2 {[%clk 0:00:46.5]} 29... Rb6 {[%clk 0:00:11.8]} 30. Rc5 {[%clk
0:00:37.5]} 30... Nf4 {[%clk 0:00:08.1]} 31. Rxc7 {[%clk 0:00:35.8]} 31... Kf8
{[%clk 0:00:08.6]} 32. a4 {[%clk 0:00:33.8]} 32... Ra6 {[%clk 0:00:06.4]} 33.
Rc8+ {[%clk 0:00:13.7]} 33... Ke7 {[%clk 0:00:06.6]} 34. Rc7+ {[%clk 0:00:13.7]}
34... Kf8 {[%clk 0:00:07.1]} 35. h4 {[%clk 0:00:11.8]} 35... gxh4 {[%clk
0:00:06.2]} 36. g5 {[%clk 0:00:11.7]} 36... Rxa4 {[%clk 0:00:06]} 37. Rc8+
{[%clk 0:00:12.4]} 37... Ke7 {[%clk 0:00:05.9]} 38. Rc7+ {[%clk 0:00:13.1]}
38... Kf8 {[%clk 0:00:06.4]} 39. e6 {[%clk 0:00:08.4]} 39... Bxe6 {[%clk
0:00:06.3]} 40. Bxe6 {[%clk 0:00:05]} 40... Nxe6 {[%clk 0:00:07.2]} 41. Rc6
{[%clk 0:00:03.8]} 41... Nxg5 {[%clk 0:00:07.1]} 42. Rg6 {[%clk 0:00:04.1]}
42... Nf3+ {[%clk 0:00:06.5]} 43. Kh3 {[%clk 0:00:04.7]} 43... Rf4 {[%clk
0:00:05.9]} 44. Rg4 {[%clk 0:00:04.2]} 44... Rf7 {[%clk 0:00:02.9]} 45. c4
{[%clk 0:00:01.8]} 45... Ke7 {[%clk 0:00:03.4]} 46. Kg2 {[%clk 0:00:02.2]} 46...
Kd6 {[%clk 0:00:03.6]} 47. Re4 {[%clk 0:00:02.5]} 47... Kc5 {[%clk 0:00:03.5]}
48. Re3 {[%clk 0:00:03]} 48... Ng5 {[%clk 0:00:03.8]} 49. Re5+ {[%clk
0:00:03.3]} 49... Kxc4 {[%clk 0:00:04.2]} 50. Rxg5 {[%clk 0:00:04.2]} 50... Kd3
{[%clk 0:00:04]} 51. Rg4 {[%clk 0:00:04.4]} 51... h3+ {[%clk 0:00:04.1]} 52. Kg3
{[%clk 0:00:03.2]} 52... h2 {[%clk 0:00:04.4]} 53. Kxh2 {[%clk 0:00:03.4]} 53...
Rxf2+ {[%clk 0:00:04.5]} 54. Kg3 {[%clk 0:00:04.3]} 54... Re2 {[%clk 0:00:05.1]}
55. Rf4 {[%clk 0:00:04.8]} 55... Re3+ {[%clk 0:00:05.5]} 56. Kg4 {[%clk
0:00:05.5]} 56... Re4 {[%clk 0:00:05.9]} 57. Rxe4 {[%clk 0:00:05.6]} 57... Kxe4
{[%clk 0:00:06.8]} 1/2-1/2

[Event "Late-Titled-Tuesday-Blitz-October-10-2023"]
[Site "Chess.com"]
[Date "2023.10.10"]
[Round "10"]
[White "Kostukov_Alex"]
[Black "rdarruda"]
[Result "1-0"]
[WhiteElo "2396"]
[BlackElo "2483"]
[TimeControl "180+1"]
[EndTime "15:51:34 PDT"]
[Termination "Kostukov_Alex won on time"]

1. g3 {[%clk 0:03:00.9]} 1... d5 {[%clk 0:02:38.1]} 2. Bg2 {[%clk 0:02:59.3]}
2... Nf6 {[%clk 0:02:38]} 3. d3 {[%clk 0:02:59.2]} 3... c6 {[%clk 0:02:38.4]} 4.
e4 {[%clk 0:02:59.4]} 4... dxe4 {[%clk 0:02:37]} 5. dxe4 {[%clk 0:03:00.3]} 5...
Qxd1+ {[%clk 0:02:36.4]} 6. Kxd1 {[%clk 0:03:01.2]} 6... e5 {[%clk 0:02:36.1]}
7. f3 {[%clk 0:03:01.4]} 7... Be6 {[%clk 0:02:35.7]} 8. Be3 {[%clk 0:03:01.4]}
8... Na6 {[%clk 0:02:34.9]} 9. Nd2 {[%clk 0:03:01.9]} 9... Bc5 {[%clk 0:02:34]}
10. Bxc5 {[%clk 0:02:50.7]} 10... Nxc5 {[%clk 0:02:34.9]} 11. Bh3 {[%clk
0:02:47.4]} 11... Na4 {[%clk 0:02:25.6]} 12. Kc1 {[%clk 0:02:45.5]} 12... O-O-O
{[%clk 0:02:23.8]} 13. Bxe6+ {[%clk 0:02:44.3]} 13... fxe6 {[%clk 0:02:24.7]}
14. Nc4 {[%clk 0:02:41.7]} 14... Rhf8 {[%clk 0:01:55.4]} 15. Nh3 {[%clk
0:02:28.4]} 15... h6 {[%clk 0:01:42.4]} 16. Nxe5 {[%clk 0:02:22.1]} 16... Nd7
{[%clk 0:01:42.5]} 17. Nxd7 {[%clk 0:02:03.9]} 17... Rxd7 {[%clk 0:01:43.4]} 18.
b3 {[%clk 0:01:59.5]} 18... Nc5 {[%clk 0:01:31.6]} 19. Nf4 {[%clk 0:01:38]}
19... g5 {[%clk 0:01:26.2]} 20. Ng6 {[%clk 0:01:33.3]} 20... Rfd8 {[%clk
0:01:18.6]} 21. Ne5 {[%clk 0:01:18.3]} 21... Rd2 {[%clk 0:01:17.9]} 22. Nf7
{[%clk 0:01:17.8]} 22... R8d4 {[%clk 0:01:14.6]} 23. Kb2 {[%clk 0:01:10.2]}
23... Rf2 {[%clk 0:01:09.2]} 24. Ne5 {[%clk 0:01:07.1]} 24... Rdd2 {[%clk
0:01:06.3]} 25. Rac1 {[%clk 0:01:05.2]} 25... Rxh2 {[%clk 0:00:59.8]} 26. Rxh2
{[%clk 0:01:04.4]} 26... Rxh2 {[%clk 0:01:00.7]} 27. Rd1 {[%clk 0:00:55.4]}
27... h5 {[%clk 0:00:54]} 28. b4 {[%clk 0:00:51.9]} 28... Na4+ {[%clk
0:00:51.5]} 29. Kb3 {[%clk 0:00:51.9]} 29... Nb6 {[%clk 0:00:49.3]} 30. c4
{[%clk 0:00:50.7]} 30... Rg2 {[%clk 0:00:41.3]} 31. c5 {[%clk 0:00:49.1]} 31...
Na8 {[%clk 0:00:40.2]} 32. Rh1 {[%clk 0:00:42.1]} 32... Rxg3 {[%clk 0:00:31.7]}
33. Rxh5 {[%clk 0:00:42]} 33... b6 {[%clk 0:00:32.2]} 34. Rh8+ {[%clk
0:00:36.1]} 34... Kb7 {[%clk 0:00:32.1]} 35. Rh7+ {[%clk 0:00:24.1]} 35... Nc7
{[%clk 0:00:31.3]} 36. cxb6 {[%clk 0:00:21.1]} 36... axb6 {[%clk 0:00:28.9]} 37.
Kc4 {[%clk 0:00:20.9]} 37... Rg2 {[%clk 0:00:23.1]} 38. a4 {[%clk 0:00:19.3]}
38... Rc2+ {[%clk 0:00:20.6]} 39. Kb3 {[%clk 0:00:17.9]} 39... Rf2 {[%clk
0:00:18.9]} 40. Rg7 {[%clk 0:00:17.2]} 40... Rg2 {[%clk 0:00:18.2]} 41. Kc4
{[%clk 0:00:16.3]} 41... Rc2+ {[%clk 0:00:17]} 42. Kd3 {[%clk 0:00:16.4]} 42...
Ra2 {[%clk 0:00:16.7]} 43. Rxg5 {[%clk 0:00:15.5]} 43... Rxa4 {[%clk 0:00:16.9]}
44. Kc3 {[%clk 0:00:15.6]} 44... Ra3+ {[%clk 0:00:17.3]} 45. Kd2 {[%clk
0:00:13.6]} 45... Nb5 {[%clk 0:00:16.3]} 46. Rg7+ {[%clk 0:00:13.6]} 46... Ka6
{[%clk 0:00:15.9]} 47. f4 {[%clk 0:00:14.1]} 47... Nd4 {[%clk 0:00:15.8]} 48.
Nc4 {[%clk 0:00:12.4]} 48... Rf3 {[%clk 0:00:14.1]} 49. Rd7 {[%clk 0:00:12.1]}
49... Nb5 {[%clk 0:00:10.5]} 50. Ke2 {[%clk 0:00:11.9]} 50... Rxf4 {[%clk
0:00:10.2]} 51. Ke3 {[%clk 0:00:11.6]} 51... Rf1 {[%clk 0:00:10.8]} 52. Re7
{[%clk 0:00:11.5]} 52... Re1+ {[%clk 0:00:11.6]} 53. Kf4 {[%clk 0:00:11.9]}
53... Nd4 {[%clk 0:00:11.7]} 54. Ke5 {[%clk 0:00:11.5]} 54... Nf3+ {[%clk
0:00:10.8]} 55. Kd6 {[%clk 0:00:11.5]} 55... Rxe4 {[%clk 0:00:10.6]} 56. Kxc6
{[%clk 0:00:11]} 56... Rxc4+ {[%clk 0:00:10.4]} 57. Kd6 {[%clk 0:00:10.5]} 57...
Rxb4 {[%clk 0:00:09.3]} 58. Rxe6 {[%clk 0:00:10.8]} 58... Ka5 {[%clk 0:00:09.7]}
59. Re8 {[%clk 0:00:10.5]} 59... Rb3 {[%clk 0:00:09.9]} 60. Kc6 {[%clk
0:00:09.3]} 60... b5 {[%clk 0:00:09]} 61. Re2 {[%clk 0:00:07.3]} 61... Ka4
{[%clk 0:00:03.6]} 62. Kd5 {[%clk 0:00:06.7]} 1-0

[Event "Late-Titled-Tuesday-Blitz-October-10-2023"]
[Site "Chess.com"]
[Date "2023.10.10"]
[Round "10"]
[White "Mikhal867"]
[Black "rickywsb"]
[Result "0-1"]
[WhiteElo "2452"]
[BlackElo "2380"]
[TimeControl "180+1"]
[EndTime "15:51:47 PDT"]
[Termination "rickywsb won by checkmate"]

1. d4 {[%clk 0:02:57.6]} 1... d5 {[%clk 0:02:59.8]} 2. c4 {[%clk 0:02:56.7]}
2... c6 {[%clk 0:02:59.9]} 3. Nf3 {[%clk 0:02:56.2]} 3... Nf6 {[%clk 0:03:00.6]}
4. Nc3 {[%clk 0:02:55.6]} 4... e6 {[%clk 0:03:01.2]} 5. g3 {[%clk 0:02:54.9]}
5... Nbd7 {[%clk 0:02:59]} 6. Bg2 {[%clk 0:02:55.4]} 6... dxc4 {[%clk
0:02:57.6]} 7. O-O {[%clk 0:02:55.6]} 7... b5 {[%clk 0:02:50]} 8. Ng5 {[%clk
0:02:40.4]} 8... Nd5 {[%clk 0:02:39.3]} 9. e4 {[%clk 0:02:38.2]} 9... Nxc3
{[%clk 0:02:37.7]} 10. bxc3 {[%clk 0:02:37.5]} 10... Be7 {[%clk 0:02:28]} 11.
Qh5 {[%clk 0:02:35.4]} 11... Bxg5 {[%clk 0:02:02.1]} 12. Bxg5 {[%clk 0:02:33.9]}
12... Qa5 {[%clk 0:02:01.7]} 13. Rfc1 {[%clk 0:02:11.3]} 13... Bb7 {[%clk
0:02:00.3]} 14. e5 {[%clk 0:01:54.3]} 14... Qc7 {[%clk 0:01:49.6]} 15. Qh4
{[%clk 0:01:48.4]} 15... O-O {[%clk 0:01:45.1]} 16. Be7 {[%clk 0:01:45.7]} 16...
Rfe8 {[%clk 0:01:43.7]} 17. Bd6 {[%clk 0:01:45]} 17... Qd8 {[%clk 0:01:38.6]}
18. Qh5 {[%clk 0:01:36.1]} 18... Qb6 {[%clk 0:01:30.6]} 19. Be4 {[%clk
0:01:25.7]} 19... g6 {[%clk 0:01:30]} 20. Qh6 {[%clk 0:01:25.3]} 20... c5 {[%clk
0:01:29.5]} 21. Re1 {[%clk 0:01:24.8]} 21... cxd4 {[%clk 0:01:10.7]} 22. cxd4
{[%clk 0:01:23]} 22... f5 {[%clk 0:01:00.2]} 23. exf6 {[%clk 0:01:07.6]} 23...
Nxf6 {[%clk 0:00:48]} 24. Bxb7 {[%clk 0:01:07.2]} 24... Qxb7 {[%clk 0:00:43.8]}
25. Be5 {[%clk 0:01:07.3]} 25... Ng4 {[%clk 0:00:39.1]} 26. Qh4 {[%clk
0:00:59.3]} 26... Qf3 {[%clk 0:00:35.3]} 27. Rf1 {[%clk 0:00:50.7]} 27... Nxe5
{[%clk 0:00:35.5]} 28. dxe5 {[%clk 0:00:50.3]} 28... Rad8 {[%clk 0:00:35.3]} 29.
a4 {[%clk 0:00:39.4]} 29... c3 {[%clk 0:00:22.2]} 30. axb5 {[%clk 0:00:37.6]}
30... Rd7 {[%clk 0:00:21.4]} 31. Qc4 {[%clk 0:00:32.7]} 31... Rf7 {[%clk
0:00:09.5]} 32. Ra3 {[%clk 0:00:28.1]} 32... Qd5 {[%clk 0:00:06]} 33. Qxd5
{[%clk 0:00:16]} 33... exd5 {[%clk 0:00:06.9]} 34. Rxc3 {[%clk 0:00:16.1]} 34...
Rxe5 {[%clk 0:00:07.6]} 35. f4 {[%clk 0:00:13.7]} 35... Re2 {[%clk 0:00:07.2]}
36. Rf2 {[%clk 0:00:13.1]} 36... Re1+ {[%clk 0:00:07.1]} 37. Kg2 {[%clk
0:00:13]} 37... d4 {[%clk 0:00:07.7]} 38. Rd3 {[%clk 0:00:12.7]} 38... Rd7
{[%clk 0:00:08.3]} 39. Rfd2 {[%clk 0:00:11.8]} 39... Rb1 {[%clk 0:00:08.4]} 40.
Rxd4 {[%clk 0:00:11.6]} 40... Rxd4 {[%clk 0:00:08.3]} 41. Rxd4 {[%clk
0:00:11.8]} 41... Rxb5 {[%clk 0:00:08.6]} 42. Rd8+ {[%clk 0:00:11.7]} 42... Kg7
{[%clk 0:00:07.4]} 43. Rd7+ {[%clk 0:00:12]} 43... Kf6 {[%clk 0:00:07.3]} 44.
Rxa7 {[%clk 0:00:11.5]} 44... h5 {[%clk 0:00:07.5]} 45. Kh3 {[%clk 0:00:10.9]}
45... Rb2 {[%clk 0:00:07.2]} 46. Ra6+ {[%clk 0:00:10]} 46... Kf5 {[%clk
0:00:06.3]} 47. Ra5+ {[%clk 0:00:10.1]} 47... Kf6 {[%clk 0:00:06.8]} 48. Ra1
{[%clk 0:00:09.9]} 48... Rc2 {[%clk 0:00:07.1]} 49. Rg1 {[%clk 0:00:09.7]} 49...
Rb2 {[%clk 0:00:07.4]} 50. Rg2 {[%clk 0:00:09.9]} 50... Rb3 {[%clk 0:00:07.3]}
51. Kh4 {[%clk 0:00:09.8]} 51... Rb4 {[%clk 0:00:07.3]} 52. Rf2 {[%clk
0:00:07.8]} 52... Kf5 {[%clk 0:00:05.3]} 53. Kh3 {[%clk 0:00:06.4]} 53... Rb3
{[%clk 0:00:05.3]} 54. Rg2 {[%clk 0:00:06.2]} 54... Re3 {[%clk 0:00:05]} 55. Kh4
{[%clk 0:00:06.3]} 55... Rb3 {[%clk 0:00:04.5]} 56. h3 {[%clk 0:00:06.6]} 56...
Kf6 {[%clk 0:00:04.6]} 57. Rf2 {[%clk 0:00:06.5]} 57... Rb4 {[%clk 0:00:04.8]}
58. g4 {[%clk 0:00:06.5]} 58... hxg4 {[%clk 0:00:03.8]} 59. hxg4 {[%clk
0:00:06.8]} 59... Rb1 {[%clk 0:00:04.4]} 60. Kg3 {[%clk 0:00:06.4]} 60... Rb3+
{[%clk 0:00:04.3]} 61. Rf3 {[%clk 0:00:06.6]} 61... Rb4 {[%clk 0:00:04.5]} 62.
Kh4 {[%clk 0:00:06.7]} 62... Ra4 {[%clk 0:00:03.7]} 63. Rf2 {[%clk 0:00:06.7]}
63... Ra3 {[%clk 0:00:03.8]} 64. f5 {[%clk 0:00:06.6]} 64... g5+ {[%clk
0:00:03.5]} 65. Kh5 {[%clk 0:00:05.1]} 65... Rh3# {[%clk 0:00:04.2]} 0-1